{"text_format":"3","workbook":"xlsx","n_sheets":2,"sheets":["Сватбен бюджет","Подробни данни за бюджета"],"not_rendered":{"charts":1,"images":1,"defined_names":2},"read":"whole","date_system":"1900"}

{"sheet":"Сватбен бюджет","index":0,"n_rows":16,"n_cols":16,"rows_kept":16,"merged":[[1,1,1,5]]}
[{"$nulls":6}," "]
[null,"ЛИНА + ДРАГАН\nВЪРЖЕТЕ ВЪЗЕЛА"]
[{"$nulls":7}," "]
[]
[null,"КАТЕГОРИЯ","ОЧАКВАНИ РАЗХОДИ","ДЕЙСТВИТЕЛНИ РАЗХОДИ","РАЗЛИКА","БЮДЖЕТ %",{"$nulls":3},"Несортирани","Очаквани разходи","Действителен разход","Очаквани разходи - Класиране на стойността","Класиране","№","Сортирани"]
[null,{"$f":"P6","v":"Тържество в ресторанта"},{"$f":"VLOOKUP(TBL_Summary[[#This Row],[КАТЕГОРИЯ]],TBL_RankingData,2,FALSE)","v":{"v":14500,"d":"14,500 лв."}},{"$f":"IF(VLOOKUP(TBL_Summary[[#This Row],[КАТЕГОРИЯ]],TBL_RankingData,3,FALSE)=0,\"\",VLOOKUP(TBL_Summary[[#This Row],[КАТЕГОРИЯ]],TBL_RankingData,3,FALSE))","v":{"v":12800,"d":"12,800 лв."}},{"$f":"IF(OR(TBL_Summary[[#This Row],[ОЧАКВАНИ РАЗХОДИ]]=\"\",TBL_Summary[[#This Row],[ДЕЙСТВИТЕЛНИ РАЗХОДИ]]=\"\"),\"\",TBL_Summary[[#This Row],[ОЧАКВАНИ РАЗХОДИ]]-TBL_Summary[[#This Row],[ДЕЙСТВИТЕЛНИ РАЗХОДИ]])","v":{"v":1700,"d":"1,700 лв."}},{"$f":"TBL_Summary[[#This Row],[ОЧАКВАНИ РАЗХОДИ]]/SUM(TBL_Summary[ОЧАКВАНИ РАЗХОДИ])","v":{"v":0.48739495798319327,"d":"48.7%"}},{"$nulls":3},"Тържество в ресторанта",{"$f":"TBL_Reception[[#Totals],[ОЧАКВАН]]","v":14500},{"$f":"TBL_Reception[[#Totals],[ДЕЙСТВИТЕЛЕН]]","v":12800},{"$f":"K6-O6/100","v":14499.99},{"$f":"_xlfn.RANK.AVG(M6,$M$6:$M$15)","v":1},1,{"$f":"INDEX(TBL_RankingData,MATCH(O6,$N$6:$N$15,0),1)","v":"Тържество в ресторанта"}]
[null,{"$f":"P7","v":"Облекло"},{"$f":"VLOOKUP(TBL_Summary[[#This Row],[КАТЕГОРИЯ]],TBL_RankingData,2,FALSE)","v":{"v":4000,"d":"4,000 лв."}},{"$f":"IF(VLOOKUP(TBL_Summary[[#This Row],[КАТЕГОРИЯ]],TBL_RankingData,3,FALSE)=0,\"\",VLOOKUP(TBL_Summary[[#This Row],[КАТЕГОРИЯ]],TBL_RankingData,3,FALSE))","v":{"v":2900,"d":"2,900 лв."}},{"$f":"IF(OR(TBL_Summary[[#This Row],[ОЧАКВАНИ РАЗХОДИ]]=\"\",TBL_Summary[[#This Row],[ДЕЙСТВИТЕЛНИ РАЗХОДИ]]=\"\"),\"\",TBL_Summary[[#This Row],[ОЧАКВАНИ РАЗХОДИ]]-TBL_Summary[[#This Row],[ДЕЙСТВИТЕЛНИ РАЗХОДИ]])","v":{"v":1100,"d":"1,100 лв."}},{"$f":"TBL_Summary[[#This Row],[ОЧАКВАНИ РАЗХОДИ]]/SUM(TBL_Summary[ОЧАКВАНИ РАЗХОДИ])","v":{"v":0.13445378151260504,"d":"13.4%"}},{"$nulls":3},"Облекло",{"$f":"TBL_Attire[[#Totals],[ОЧАКВАН]]","v":4000},{"$f":"TBL_Attire[[#Totals],[ДЕЙСТВИТЕЛЕН]]","v":2900},{"$f":"K7-O7/100","v":3999.98},2,2,"Облекло"]
[null,"Цветя и декорации",{"$f":"VLOOKUP(TBL_Summary[[#This Row],[КАТЕГОРИЯ]],TBL_RankingData,2,FALSE)","v":{"v":3000,"d":"3,000 лв."}},{"$f":"IF(VLOOKUP(TBL_Summary[[#This Row],[КАТЕГОРИЯ]],TBL_RankingData,3,FALSE)=0,\"\",VLOOKUP(TBL_Summary[[#This Row],[КАТЕГОРИЯ]],TBL_RankingData,3,FALSE))","v":""},{"$f":"IF(OR(TBL_Summary[[#This Row],[ОЧАКВАНИ РАЗХОДИ]]=\"\",TBL_Summary[[#This Row],[ДЕЙСТВИТЕЛНИ РАЗХОДИ]]=\"\"),\"\",TBL_Summary[[#This Row],[ОЧАКВАНИ РАЗХОДИ]]-TBL_Summary[[#This Row],[ДЕЙСТВИТЕЛНИ РАЗХОДИ]])","v":""},{"$f":"TBL_Summary[[#This Row],[ОЧАКВАНИ РАЗХОДИ]]/SUM(TBL_Summary[ОЧАКВАНИ РАЗХОДИ])","v":{"v":0.10084033613445378,"d":"10.1%"}},{"$nulls":3},"Цветя и декорации",{"$f":"TBL_FlowersAndDecor[[#Totals],[ОЧАКВАН]]","v":3000},{"$f":"TBL_FlowersAndDecor[[#Totals],[ДЕЙСТВИТЕЛЕН]]","v":0},2999.97,3,3,"Цветя и декорации"]
[null,"Снимки и видео",{"$f":"VLOOKUP(TBL_Summary[[#This Row],[КАТЕГОРИЯ]],TBL_RankingData,2,FALSE)","v":{"v":2500,"d":"2,500 лв."}},{"$f":"IF(VLOOKUP(TBL_Summary[[#This Row],[КАТЕГОРИЯ]],TBL_RankingData,3,FALSE)=0,\"\",VLOOKUP(TBL_Summary[[#This Row],[КАТЕГОРИЯ]],TBL_RankingData,3,FALSE))","v":""},{"$f":"IF(OR(TBL_Summary[[#This Row],[ОЧАКВАНИ РАЗХОДИ]]=\"\",TBL_Summary[[#This Row],[ДЕЙСТВИТЕЛНИ РАЗХОДИ]]=\"\"),\"\",TBL_Summary[[#This Row],[ОЧАКВАНИ РАЗХОДИ]]-TBL_Summary[[#This Row],[ДЕЙСТВИТЕЛНИ РАЗХОДИ]])","v":""},{"$f":"TBL_Summary[[#This Row],[ОЧАКВАНИ РАЗХОДИ]]/SUM(TBL_Summary[ОЧАКВАНИ РАЗХОДИ])","v":{"v":0.08403361344537816,"d":"8.4%"}},{"$nulls":3},"Музика",{"$f":"TBL_Music[[#Totals],[ОЧАКВАН]]","v":1800},{"$f":"TBL_Music[[#Totals],[ДЕЙСТВИТЕЛЕН]]","v":0},1799.96,5,4,"Снимки и видео"]
[null,"Музика",{"$f":"VLOOKUP(TBL_Summary[[#This Row],[КАТЕГОРИЯ]],TBL_RankingData,2,FALSE)","v":{"v":1800,"d":"1,800 лв."}},{"$f":"IF(VLOOKUP(TBL_Summary[[#This Row],[КАТЕГОРИЯ]],TBL_RankingData,3,FALSE)=0,\"\",VLOOKUP(TBL_Summary[[#This Row],[КАТЕГОРИЯ]],TBL_RankingData,3,FALSE))","v":""},{"$f":"IF(OR(TBL_Summary[[#This Row],[ОЧАКВАНИ РАЗХОДИ]]=\"\",TBL_Summary[[#This Row],[ДЕЙСТВИТЕЛНИ РАЗХОДИ]]=\"\"),\"\",TBL_Summary[[#This Row],[ОЧАКВАНИ РАЗХОДИ]]-TBL_Summary[[#This Row],[ДЕЙСТВИТЕЛНИ РАЗХОДИ]])","v":""},{"$f":"TBL_Summary[[#This Row],[ОЧАКВАНИ РАЗХОДИ]]/SUM(TBL_Summary[ОЧАКВАНИ РАЗХОДИ])","v":{"v":0.06050420168067227,"d":"6.1%"}},{"$nulls":3},"Снимки и видео",{"$f":"TBL_PhotographsAndVideo[[#Totals],[ОЧАКВАН]]","v":2500},{"$f":"TBL_PhotographsAndVideo[[#Totals],[ДЕЙСТВИТЕЛЕН]]","v":0},2499.95,4,5,"Музика"]
[null,{"$f":"P11","v":"Услуги и подаръци"},{"$f":"VLOOKUP(TBL_Summary[[#This Row],[КАТЕГОРИЯ]],TBL_RankingData,2,FALSE)","v":{"v":1100,"d":"1,100 лв."}},{"$f":"IF(VLOOKUP(TBL_Summary[[#This Row],[КАТЕГОРИЯ]],TBL_RankingData,3,FALSE)=0,\"\",VLOOKUP(TBL_Summary[[#This Row],[КАТЕГОРИЯ]],TBL_RankingData,3,FALSE))","v":""},{"$f":"IF(OR(TBL_Summary[[#This Row],[ОЧАКВАНИ РАЗХОДИ]]=\"\",TBL_Summary[[#This Row],[ДЕЙСТВИТЕЛНИ РАЗХОДИ]]=\"\"),\"\",TBL_Summary[[#This Row],[ОЧАКВАНИ РАЗХОДИ]]-TBL_Summary[[#This Row],[ДЕЙСТВИТЕЛНИ РАЗХОДИ]])","v":""},{"$f":"TBL_Summary[[#This Row],[ОЧАКВАНИ РАЗХОДИ]]/SUM(TBL_Summary[ОЧАКВАНИ РАЗХОДИ])","v":{"v":0.03697478991596639,"d":"3.7%"}},{"$nulls":3},"Услуги и подаръци",{"$f":"TBL_FavorsAndGifts[[#Totals],[ОЧАКВАН]]","v":1100},{"$f":"TBL_FavorsAndGifts[[#Totals],[ДЕЙСТВИТЕЛЕН]]","v":0},1099.94,6,6,"Услуги и подаръци"]
[null,{"$f":"P12","v":"Венчални халки"},{"$f":"VLOOKUP(TBL_Summary[[#This Row],[КАТЕГОРИЯ]],TBL_RankingData,2,FALSE)","v":{"v":1100,"d":"1,100 лв."}},{"$f":"IF(VLOOKUP(TBL_Summary[[#This Row],[КАТЕГОРИЯ]],TBL_RankingData,3,FALSE)=0,\"\",VLOOKUP(TBL_Summary[[#This Row],[КАТЕГОРИЯ]],TBL_RankingData,3,FALSE))","v":""},{"$f":"IF(OR(TBL_Summary[[#This Row],[ОЧАКВАНИ РАЗХОДИ]]=\"\",TBL_Summary[[#This Row],[ДЕЙСТВИТЕЛНИ РАЗХОДИ]]=\"\"),\"\",TBL_Summary[[#This Row],[ОЧАКВАНИ РАЗХОДИ]]-TBL_Summary[[#This Row],[ДЕЙСТВИТЕЛНИ РАЗХОДИ]])","v":""},{"$f":"TBL_Summary[[#This Row],[ОЧАКВАНИ РАЗХОДИ]]/SUM(TBL_Summary[ОЧАКВАНИ РАЗХОДИ])","v":{"v":0.03697478991596639,"d":"3.7%"}},{"$nulls":3},"Церемония",{"$f":"TBL_Ceremony[[#Totals],[ОЧАКВАН]]","v":800},{"$f":"TBL_Ceremony[[#Totals],[ДЕЙСТВИТЕЛЕН]]","v":0},799.93,8,7,"Венчални халки"]
[null,{"$f":"P13","v":"Церемония"},{"$f":"VLOOKUP(TBL_Summary[[#This Row],[КАТЕГОРИЯ]],TBL_RankingData,2,FALSE)","v":{"v":800,"d":"800 лв."}},{"$f":"IF(VLOOKUP(TBL_Summary[[#This Row],[КАТЕГОРИЯ]],TBL_RankingData,3,FALSE)=0,\"\",VLOOKUP(TBL_Summary[[#This Row],[КАТЕГОРИЯ]],TBL_RankingData,3,FALSE))","v":""},{"$f":"IF(OR(TBL_Summary[[#This Row],[ОЧАКВАНИ РАЗХОДИ]]=\"\",TBL_Summary[[#This Row],[ДЕЙСТВИТЕЛНИ РАЗХОДИ]]=\"\"),\"\",TBL_Summary[[#This Row],[ОЧАКВАНИ РАЗХОДИ]]-TBL_Summary[[#This Row],[ДЕЙСТВИТЕЛНИ РАЗХОДИ]])","v":""},{"$f":"TBL_Summary[[#This Row],[ОЧАКВАНИ РАЗХОДИ]]/SUM(TBL_Summary[ОЧАКВАНИ РАЗХОДИ])","v":{"v":0.02689075630252101,"d":"2.7%"}},{"$nulls":3},"Канцеларски материали",{"$f":"TBL_Stationery[[#Totals],[ОЧАКВАН]]","v":500},{"$f":"TBL_Stationery[[#Totals],[ДЕЙСТВИТЕЛЕН]]","v":0},499.92,9,8,"Церемония"]
[null,{"$f":"P14","v":"Канцеларски материали"},{"$f":"VLOOKUP(TBL_Summary[[#This Row],[КАТЕГОРИЯ]],TBL_RankingData,2,FALSE)","v":{"v":500,"d":"500 лв."}},{"$f":"IF(VLOOKUP(TBL_Summary[[#This Row],[КАТЕГОРИЯ]],TBL_RankingData,3,FALSE)=0,\"\",VLOOKUP(TBL_Summary[[#This Row],[КАТЕГОРИЯ]],TBL_RankingData,3,FALSE))","v":""},{"$f":"IF(OR(TBL_Summary[[#This Row],[ОЧАКВАНИ РАЗХОДИ]]=\"\",TBL_Summary[[#This Row],[ДЕЙСТВИТЕЛНИ РАЗХОДИ]]=\"\"),\"\",TBL_Summary[[#This Row],[ОЧАКВАНИ РАЗХОДИ]]-TBL_Summary[[#This Row],[ДЕЙСТВИТЕЛНИ РАЗХОДИ]])","v":""},{"$f":"TBL_Summary[[#This Row],[ОЧАКВАНИ РАЗХОДИ]]/SUM(TBL_Summary[ОЧАКВАНИ РАЗХОДИ])","v":{"v":0.01680672268907563,"d":"1.7%"}},{"$nulls":3},"Венчални халки",{"$f":"TBL_WeddingRings[[#Totals],[ОЧАКВАН]]","v":1100},{"$f":"TBL_WeddingRings[[#Totals],[ДЕЙСТВИТЕЛЕН]]","v":0},1099.91,7,9,"Канцеларски материали"]
[null,{"$f":"P15","v":"Транспорт"},{"$f":"VLOOKUP(TBL_Summary[[#This Row],[КАТЕГОРИЯ]],TBL_RankingData,2,FALSE)","v":{"v":450,"d":"450 лв."}},{"$f":"IF(VLOOKUP(TBL_Summary[[#This Row],[КАТЕГОРИЯ]],TBL_RankingData,3,FALSE)=0,\"\",VLOOKUP(TBL_Summary[[#This Row],[КАТЕГОРИЯ]],TBL_RankingData,3,FALSE))","v":""},{"$f":"IF(OR(TBL_Summary[[#This Row],[ОЧАКВАНИ РАЗХОДИ]]=\"\",TBL_Summary[[#This Row],[ДЕЙСТВИТЕЛНИ РАЗХОДИ]]=\"\"),\"\",TBL_Summary[[#This Row],[ОЧАКВАНИ РАЗХОДИ]]-TBL_Summary[[#This Row],[ДЕЙСТВИТЕЛНИ РАЗХОДИ]])","v":""},{"$f":"TBL_Summary[[#This Row],[ОЧАКВАНИ РАЗХОДИ]]/SUM(TBL_Summary[ОЧАКВАНИ РАЗХОДИ])","v":{"v":0.015126050420168067,"d":"1.5%"}},{"$nulls":3},"Транспорт",{"$f":"TBL_Transportation[[#Totals],[ОЧАКВАН]]","v":450},{"$f":"TBL_Transportation[[#Totals],[ДЕЙСТВИТЕЛЕН]]","v":0},449.9,10,10,"Транспорт"]
[null,"Общо",{"$f":"SUBTOTAL(109,TBL_Summary[ОЧАКВАНИ РАЗХОДИ])","v":{"v":29750,"d":"29,750 лв."}},{"$f":"SUBTOTAL(109,TBL_Summary[ДЕЙСТВИТЕЛНИ РАЗХОДИ])","v":{"v":15700,"d":"15,700 лв."}},{"$f":"TBL_Summary[[#Totals],[ОЧАКВАНИ РАЗХОДИ]]-TBL_Summary[[#Totals],[ДЕЙСТВИТЕЛНИ РАЗХОДИ]]","v":{"v":14050,"d":"14,050 лв."}},{"$f":"SUBTOTAL(109,TBL_Summary[БЮДЖЕТ %])","v":{"v":1,"d":"100%"}}]

{"sheet":"Подробни данни за бюджета","index":1,"n_rows":91,"n_cols":6,"rows_kept":91}
[{"$nulls":5}," "]
[null,"ПОДРОБНИ ДАННИ ЗА БЮДЖЕТА"]
[]
[null,"ТЪРЖЕСТВО В РЕСТОРАНТА","ОЧАКВАН","ДЕЙСТВИТЕЛЕН","РАЗЛИКА"]
[null,"Място и наемане",{"v":8000,"d":"8,000.00 лв."},{"v":7800,"d":"7,800.00 лв."},{"$f":"IF(OR(TBL_Reception[[#This Row],[ОЧАКВАН]]=\"\",TBL_Reception[[#This Row],[ДЕЙСТВИТЕЛЕН]]=\"\"),\"\",TBL_Reception[[#This Row],[ОЧАКВАН]]-TBL_Reception[[#This Row],[ДЕЙСТВИТЕЛЕН]])","v":{"v":200,"d":"200.00 лв."}}]
[null,"Храна и услуги",{"v":4000,"d":"4,000.00 лв."},{"v":4200,"d":"4,200.00 лв."},{"$f":"IF(OR(TBL_Reception[[#This Row],[ОЧАКВАН]]=\"\",TBL_Reception[[#This Row],[ДЕЙСТВИТЕЛЕН]]=\"\"),\"\",TBL_Reception[[#This Row],[ОЧАКВАН]]-TBL_Reception[[#This Row],[ДЕЙСТВИТЕЛЕН]])","v":{"v":-200,"d":"-200.00 лв."}}]
[null,"Напитки",{"v":1000,"d":"1,000.00 лв."},{"v":800,"d":"800.00 лв."},{"$f":"IF(OR(TBL_Reception[[#This Row],[ОЧАКВАН]]=\"\",TBL_Reception[[#This Row],[ДЕЙСТВИТЕЛЕН]]=\"\"),\"\",TBL_Reception[[#This Row],[ОЧАКВАН]]-TBL_Reception[[#This Row],[ДЕЙСТВИТЕЛЕН]])","v":{"v":200,"d":"200.00 лв."}}]
[null,"Торта",{"v":1000,"d":"1,000.00 лв."},null,{"$f":"IF(OR(TBL_Reception[[#This Row],[ОЧАКВАН]]=\"\",TBL_Reception[[#This Row],[ДЕЙСТВИТЕЛЕН]]=\"\"),\"\",TBL_Reception[[#This Row],[ОЧАКВАН]]-TBL_Reception[[#This Row],[ДЕЙСТВИТЕЛЕН]])","v":""}]
[null,"Други разходи",{"v":500,"d":"500.00 лв."},null,{"$f":"IF(OR(TBL_Reception[[#This Row],[ОЧАКВАН]]=\"\",TBL_Reception[[#This Row],[ДЕЙСТВИТЕЛЕН]]=\"\"),\"\",TBL_Reception[[#This Row],[ОЧАКВАН]]-TBL_Reception[[#This Row],[ДЕЙСТВИТЕЛЕН]])","v":""}]
[null,"ОБЩО ЗА ТЪРЖЕСТВОТО В РЕСТОРАНТА",{"$f":"SUBTOTAL(109,TBL_Reception[ОЧАКВАН])","v":{"v":14500,"d":"14,500.00 лв."}},{"$f":"SUBTOTAL(109,TBL_Reception[ДЕЙСТВИТЕЛЕН])","v":{"v":12800,"d":"12,800.00 лв."}},{"$f":"TBL_Reception[[#Totals],[ОЧАКВАН]]-TBL_Reception[[#Totals],[ДЕЙСТВИТЕЛЕН]]","v":{"v":1700,"d":"1,700.00 лв."}}]
[]
[]
[null,"ОБЛЕКЛО","ОЧАКВАН","ДЕЙСТВИТЕЛЕН","РАЗЛИКА"]
[null,"Смокинг, костюм и/или рокли",{"v":3000,"d":"3,000.00 лв."},{"v":2900,"d":"2,900.00 лв."},{"$f":"IF(OR(TBL_Attire[[#This Row],[ОЧАКВАН]]=\"\",TBL_Attire[[#This Row],[ДЕЙСТВИТЕЛЕН]]=\"\"),\"\",TBL_Attire[[#This Row],[ОЧАКВАН]]-TBL_Attire[[#This Row],[ДЕЙСТВИТЕЛЕН]])","v":{"v":100,"d":"100.00 лв."}}]
[null,"Поправки на дрехи",{"v":100,"d":"100.00 лв."},null,{"$f":"IF(OR(TBL_Attire[[#This Row],[ОЧАКВАН]]=\"\",TBL_Attire[[#This Row],[ДЕЙСТВИТЕЛЕН]]=\"\"),\"\",TBL_Attire[[#This Row],[ОЧАКВАН]]-TBL_Attire[[#This Row],[ДЕЙСТВИТЕЛЕН]])","v":""}]
[null,"Аксесоар за главата и воал",{"v":200,"d":"200.00 лв."},null,{"$f":"IF(OR(TBL_Attire[[#This Row],[ОЧАКВАН]]=\"\",TBL_Attire[[#This Row],[ДЕЙСТВИТЕЛЕН]]=\"\"),\"\",TBL_Attire[[#This Row],[ОЧАКВАН]]-TBL_Attire[[#This Row],[ДЕЙСТВИТЕЛЕН]])","v":""}]
[null,"Аксесоари",{"v":100,"d":"100.00 лв."},null,{"$f":"IF(OR(TBL_Attire[[#This Row],[ОЧАКВАН]]=\"\",TBL_Attire[[#This Row],[ДЕЙСТВИТЕЛЕН]]=\"\"),\"\",TBL_Attire[[#This Row],[ОЧАКВАН]]-TBL_Attire[[#This Row],[ДЕЙСТВИТЕЛЕН]])","v":""}]
[null,"Коса и грим",{"v":500,"d":"500.00 лв."},null,{"$f":"IF(OR(TBL_Attire[[#This Row],[ОЧАКВАН]]=\"\",TBL_Attire[[#This Row],[ДЕЙСТВИТЕЛЕН]]=\"\"),\"\",TBL_Attire[[#This Row],[ОЧАКВАН]]-TBL_Attire[[#This Row],[ДЕЙСТВИТЕЛЕН]])","v":""}]
[null,"Други разходи",{"v":100,"d":"100.00 лв."},null,{"$f":"IF(OR(TBL_Attire[[#This Row],[ОЧАКВАН]]=\"\",TBL_Attire[[#This Row],[ДЕЙСТВИТЕЛЕН]]=\"\"),\"\",TBL_Attire[[#This Row],[ОЧАКВАН]]-TBL_Attire[[#This Row],[ДЕЙСТВИТЕЛЕН]])","v":""}]
[null,"ОБЩА СУМА ЗА ОБЛЕКЛО",{"$f":"SUBTOTAL(109,TBL_Attire[ОЧАКВАН])","v":{"v":4000,"d":"4,000.00 лв."}},{"$f":"SUBTOTAL(109,TBL_Attire[ДЕЙСТВИТЕЛЕН])","v":{"v":2900,"d":"2,900.00 лв."}},{"$f":"TBL_Attire[[#Totals],[ОЧАКВАН]]-TBL_Attire[[#Totals],[ДЕЙСТВИТЕЛЕН]]","v":{"v":1100,"d":"1,100.00 лв."}}]
[]
[]
[null,"ЦВЕТЯ И ДЕКОРАЦИИ","ОЧАКВАН","ДЕЙСТВИТЕЛЕН","РАЗЛИКА"]
[null,"Аранжировки на цветя за церемонията",{"v":1000,"d":"1,000.00 лв."},null,{"$f":"IF(OR(TBL_FlowersAndDecor[[#This Row],[ОЧАКВАН]]=\"\",TBL_FlowersAndDecor[[#This Row],[ДЕЙСТВИТЕЛЕН]]=\"\"),\"\",TBL_FlowersAndDecor[[#This Row],[ОЧАКВАН]]-TBL_FlowersAndDecor[[#This Row],[ДЕЙСТВИТЕЛЕН]])","v":""}]
[null,"Късметчета и кошничка",{"v":500,"d":"500.00 лв."},null,{"$f":"IF(OR(TBL_FlowersAndDecor[[#This Row],[ОЧАКВАН]]=\"\",TBL_FlowersAndDecor[[#This Row],[ДЕЙСТВИТЕЛЕН]]=\"\"),\"\",TBL_FlowersAndDecor[[#This Row],[ОЧАКВАН]]-TBL_FlowersAndDecor[[#This Row],[ДЕЙСТВИТЕЛЕН]])","v":""}]
[null,"Възглавница за пръстен",{"v":100,"d":"100.00 лв."},null,{"$f":"IF(OR(TBL_FlowersAndDecor[[#This Row],[ОЧАКВАН]]=\"\",TBL_FlowersAndDecor[[#This Row],[ДЕЙСТВИТЕЛЕН]]=\"\"),\"\",TBL_FlowersAndDecor[[#This Row],[ОЧАКВАН]]-TBL_FlowersAndDecor[[#This Row],[ДЕЙСТВИТЕЛЕН]])","v":""}]
[null,"Букети",{"v":500,"d":"500.00 лв."},null,{"$f":"IF(OR(TBL_FlowersAndDecor[[#This Row],[ОЧАКВАН]]=\"\",TBL_FlowersAndDecor[[#This Row],[ДЕЙСТВИТЕЛЕН]]=\"\"),\"\",TBL_FlowersAndDecor[[#This Row],[ОЧАКВАН]]-TBL_FlowersAndDecor[[#This Row],[ДЕЙСТВИТЕЛЕН]])","v":""}]
[null,"Бутониери",{"v":100,"d":"100.00 лв."},null,{"$f":"IF(OR(TBL_FlowersAndDecor[[#This Row],[ОЧАКВАН]]=\"\",TBL_FlowersAndDecor[[#This Row],[ДЕЙСТВИТЕЛЕН]]=\"\"),\"\",TBL_FlowersAndDecor[[#This Row],[ОЧАКВАН]]-TBL_FlowersAndDecor[[#This Row],[ДЕЙСТВИТЕЛЕН]])","v":""}]
[null,"Букетчета за ръка",{"v":200,"d":"200.00 лв."},null,{"$f":"IF(OR(TBL_FlowersAndDecor[[#This Row],[ОЧАКВАН]]=\"\",TBL_FlowersAndDecor[[#This Row],[ДЕЙСТВИТЕЛЕН]]=\"\"),\"\",TBL_FlowersAndDecor[[#This Row],[ОЧАКВАН]]-TBL_FlowersAndDecor[[#This Row],[ДЕЙСТВИТЕЛЕН]])","v":""}]
[null,"Декорации за прием",{"v":300,"d":"300.00 лв."},null,{"$f":"IF(OR(TBL_FlowersAndDecor[[#This Row],[ОЧАКВАН]]=\"\",TBL_FlowersAndDecor[[#This Row],[ДЕЙСТВИТЕЛЕН]]=\"\"),\"\",TBL_FlowersAndDecor[[#This Row],[ОЧАКВАН]]-TBL_FlowersAndDecor[[#This Row],[ДЕЙСТВИТЕЛЕН]])","v":""}]
[null,"Осветление",{"v":200,"d":"200.00 лв."},null,{"$f":"IF(OR(TBL_FlowersAndDecor[[#This Row],[ОЧАКВАН]]=\"\",TBL_FlowersAndDecor[[#This Row],[ДЕЙСТВИТЕЛЕН]]=\"\"),\"\",TBL_FlowersAndDecor[[#This Row],[ОЧАКВАН]]-TBL_FlowersAndDecor[[#This Row],[ДЕЙСТВИТЕЛЕН]])","v":""}]
[null,"Други разходи",{"v":100,"d":"100.00 лв."},null,{"$f":"IF(OR(TBL_FlowersAndDecor[[#This Row],[ОЧАКВАН]]=\"\",TBL_FlowersAndDecor[[#This Row],[ДЕЙСТВИТЕЛЕН]]=\"\"),\"\",TBL_FlowersAndDecor[[#This Row],[ОЧАКВАН]]-TBL_FlowersAndDecor[[#This Row],[ДЕЙСТВИТЕЛЕН]])","v":""}]
[null,"ОБЩА СУМА ЗА ЦВЕТЯ И ДЕКОРАЦИИ",{"$f":"SUBTOTAL(109,TBL_FlowersAndDecor[ОЧАКВАН])","v":{"v":3000,"d":"3,000.00 лв."}},{"$f":"SUBTOTAL(109,TBL_FlowersAndDecor[ДЕЙСТВИТЕЛЕН])","v":{"v":0,"d":"0.00 лв."}},{"$f":"TBL_FlowersAndDecor[[#Totals],[ОЧАКВАН]]-TBL_FlowersAndDecor[[#Totals],[ДЕЙСТВИТЕЛЕН]]","v":{"v":3000,"d":"3,000.00 лв."}}]
[]
[]
[null,"МУЗИКА","ОЧАКВАН","ДЕЙСТВИТЕЛЕН","РАЗЛИКА"]
[null,"Музиканти за церемонията",{"v":700,"d":"700.00 лв."},null,{"$f":"IF(OR(TBL_Music[[#This Row],[ОЧАКВАН]]=\"\",TBL_Music[[#This Row],[ДЕЙСТВИТЕЛЕН]]=\"\"),\"\",TBL_Music[[#This Row],[ОЧАКВАН]]-TBL_Music[[#This Row],[ДЕЙСТВИТЕЛЕН]])","v":""}]
[null,"Музиканти за коктейла",{"v":300,"d":"300.00 лв."},null,{"$f":"IF(OR(TBL_Music[[#This Row],[ОЧАКВАН]]=\"\",TBL_Music[[#This Row],[ДЕЙСТВИТЕЛЕН]]=\"\"),\"\",TBL_Music[[#This Row],[ОЧАКВАН]]-TBL_Music[[#This Row],[ДЕЙСТВИТЕЛЕН]])","v":""}]
[null,"Оркестър за ресторанта, диджей или муз.оформление",{"v":200,"d":"200.00 лв."},null,{"$f":"IF(OR(TBL_Music[[#This Row],[ОЧАКВАН]]=\"\",TBL_Music[[#This Row],[ДЕЙСТВИТЕЛЕН]]=\"\"),\"\",TBL_Music[[#This Row],[ОЧАКВАН]]-TBL_Music[[#This Row],[ДЕЙСТВИТЕЛЕН]])","v":""}]
[null,"Озвучаване или наем на дансинг",{"v":400,"d":"400.00 лв."},null,{"$f":"IF(OR(TBL_Music[[#This Row],[ОЧАКВАН]]=\"\",TBL_Music[[#This Row],[ДЕЙСТВИТЕЛЕН]]=\"\"),\"\",TBL_Music[[#This Row],[ОЧАКВАН]]-TBL_Music[[#This Row],[ДЕЙСТВИТЕЛЕН]])","v":""}]
[null,"Други разходи",{"v":200,"d":"200.00 лв."},null,{"$f":"IF(OR(TBL_Music[[#This Row],[ОЧАКВАН]]=\"\",TBL_Music[[#This Row],[ДЕЙСТВИТЕЛЕН]]=\"\"),\"\",TBL_Music[[#This Row],[ОЧАКВАН]]-TBL_Music[[#This Row],[ДЕЙСТВИТЕЛЕН]])","v":""}]
[null,"ОБЩА СУМА ЗА МУЗИКА",{"$f":"SUBTOTAL(109,TBL_Music[ОЧАКВАН])","v":{"v":1800,"d":"1,800.00 лв."}},{"$f":"SUBTOTAL(109,TBL_Music[ДЕЙСТВИТЕЛЕН])","v":{"v":0,"d":"0.00 лв."}},{"$f":"TBL_Music[[#Totals],[ОЧАКВАН]]-TBL_Music[[#Totals],[ДЕЙСТВИТЕЛЕН]]","v":{"v":1800,"d":"1,800.00 лв."}}]
[]
[]
[null,"СНИМКИ И ВИДЕО","ОЧАКВАН","ДЕЙСТВИТЕЛЕН","РАЗЛИКА"]
[null,"Снимки",{"v":1000,"d":"1,000.00 лв."},null,{"$f":"IF(OR(TBL_PhotographsAndVideo[[#This Row],[ОЧАКВАН]]=\"\",TBL_PhotographsAndVideo[[#This Row],[ДЕЙСТВИТЕЛЕН]]=\"\"),\"\",TBL_PhotographsAndVideo[[#This Row],[ОЧАКВАН]]-TBL_PhotographsAndVideo[[#This Row],[ДЕЙСТВИТЕЛЕН]])","v":""}]
[null,"Видеозапис",{"v":800,"d":"800.00 лв."},null,{"$f":"IF(OR(TBL_PhotographsAndVideo[[#This Row],[ОЧАКВАН]]=\"\",TBL_PhotographsAndVideo[[#This Row],[ДЕЙСТВИТЕЛЕН]]=\"\"),\"\",TBL_PhotographsAndVideo[[#This Row],[ОЧАКВАН]]-TBL_PhotographsAndVideo[[#This Row],[ДЕЙСТВИТЕЛЕН]])","v":""}]
[null,"Допълнителни снимки и албуми",{"v":500,"d":"500.00 лв."},null,{"$f":"IF(OR(TBL_PhotographsAndVideo[[#This Row],[ОЧАКВАН]]=\"\",TBL_PhotographsAndVideo[[#This Row],[ДЕЙСТВИТЕЛЕН]]=\"\"),\"\",TBL_PhotographsAndVideo[[#This Row],[ОЧАКВАН]]-TBL_PhotographsAndVideo[[#This Row],[ДЕЙСТВИТЕЛЕН]])","v":""}]
[null,"Други разходи",{"v":200,"d":"200.00 лв."},null,{"$f":"IF(OR(TBL_PhotographsAndVideo[[#This Row],[ОЧАКВАН]]=\"\",TBL_PhotographsAndVideo[[#This Row],[ДЕЙСТВИТЕЛЕН]]=\"\"),\"\",TBL_PhotographsAndVideo[[#This Row],[ОЧАКВАН]]-TBL_PhotographsAndVideo[[#This Row],[ДЕЙСТВИТЕЛЕН]])","v":""}]
[null,"ОБЩО ЗА СНИМКИ И ВИДЕО",{"$f":"SUBTOTAL(109,TBL_PhotographsAndVideo[ОЧАКВАН])","v":{"v":2500,"d":"2,500.00 лв."}},{"$f":"SUBTOTAL(109,TBL_PhotographsAndVideo[ДЕЙСТВИТЕЛЕН])","v":{"v":0,"d":"0.00 лв."}},{"$f":"TBL_PhotographsAndVideo[[#Totals],[ОЧАКВАН]]-TBL_PhotographsAndVideo[[#Totals],[ДЕЙСТВИТЕЛЕН]]","v":{"v":2500,"d":"2,500.00 лв."}}]
[]
[]
[null,"ИЗГОДИ И ПОДАРЪЦИ","ОЧАКВАН","ДЕЙСТВИТЕЛЕН","РАЗЛИКА"]
[null,"Подаръци за добре дошли",{"v":700,"d":"700.00 лв."},null,{"$f":"IF(OR(TBL_FavorsAndGifts[[#This Row],[ОЧАКВАН]]=\"\",TBL_FavorsAndGifts[[#This Row],[ДЕЙСТВИТЕЛЕН]]=\"\"),\"\",TBL_FavorsAndGifts[[#This Row],[ОЧАКВАН]]-TBL_FavorsAndGifts[[#This Row],[ДЕЙСТВИТЕЛЕН]])","v":""}]
[null,"Подаръци за парти",{"v":200,"d":"200.00 лв."},null,{"$f":"IF(OR(TBL_FavorsAndGifts[[#This Row],[ОЧАКВАН]]=\"\",TBL_FavorsAndGifts[[#This Row],[ДЕЙСТВИТЕЛЕН]]=\"\"),\"\",TBL_FavorsAndGifts[[#This Row],[ОЧАКВАН]]-TBL_FavorsAndGifts[[#This Row],[ДЕЙСТВИТЕЛЕН]])","v":""}]
[null,"Други разходи",{"v":200,"d":"200.00 лв."},null,{"$f":"IF(OR(TBL_FavorsAndGifts[[#This Row],[ОЧАКВАН]]=\"\",TBL_FavorsAndGifts[[#This Row],[ДЕЙСТВИТЕЛЕН]]=\"\"),\"\",TBL_FavorsAndGifts[[#This Row],[ОЧАКВАН]]-TBL_FavorsAndGifts[[#This Row],[ДЕЙСТВИТЕЛЕН]])","v":""}]
[null,"ОБЩО ИЗГОДИ И ПОДАРЪЦИ",{"$f":"SUBTOTAL(109,TBL_FavorsAndGifts[ОЧАКВАН])","v":{"v":1100,"d":"1,100.00 лв."}},{"$f":"SUBTOTAL(109,TBL_FavorsAndGifts[ДЕЙСТВИТЕЛЕН])","v":{"v":0,"d":"0.00 лв."}},{"$f":"TBL_FavorsAndGifts[[#Totals],[ОЧАКВАН]]-TBL_FavorsAndGifts[[#Totals],[ДЕЙСТВИТЕЛЕН]]","v":{"v":1100,"d":"1,100.00 лв."}}]
[]
[]
[null,"ЦЕРЕМОНИЯ","ОЧАКВАН","ДЕЙСТВИТЕЛЕН","РАЗЛИКА"]
[null,"Такса",{"v":500,"d":"500.00 лв."},null,{"$f":"IF(OR(TBL_Ceremony[[#This Row],[ОЧАКВАН]]=\"\",TBL_Ceremony[[#This Row],[ДЕЙСТВИТЕЛЕН]]=\"\"),\"\",TBL_Ceremony[[#This Row],[ОЧАКВАН]]-TBL_Ceremony[[#This Row],[ДЕЙСТВИТЕЛЕН]])","v":""}]
[null,"Църковна такса или дарение за църква",{"v":200,"d":"200.00 лв."},null,{"$f":"IF(OR(TBL_Ceremony[[#This Row],[ОЧАКВАН]]=\"\",TBL_Ceremony[[#This Row],[ДЕЙСТВИТЕЛЕН]]=\"\"),\"\",TBL_Ceremony[[#This Row],[ОЧАКВАН]]-TBL_Ceremony[[#This Row],[ДЕЙСТВИТЕЛЕН]])","v":""}]
[null,"Други разходи",{"v":100,"d":"100.00 лв."},null,{"$f":"IF(OR(TBL_Ceremony[[#This Row],[ОЧАКВАН]]=\"\",TBL_Ceremony[[#This Row],[ДЕЙСТВИТЕЛЕН]]=\"\"),\"\",TBL_Ceremony[[#This Row],[ОЧАКВАН]]-TBL_Ceremony[[#This Row],[ДЕЙСТВИТЕЛЕН]])","v":""}]
[null,"ОБЩА СУМА ЗА ЦЕРЕМОНИЯТА",{"$f":"SUBTOTAL(109,TBL_Ceremony[ОЧАКВАН])","v":{"v":800,"d":"800.00 лв."}},{"$f":"SUBTOTAL(109,TBL_Ceremony[ДЕЙСТВИТЕЛЕН])","v":{"v":0,"d":"0.00 лв."}},{"$f":"TBL_Ceremony[[#Totals],[ОЧАКВАН]]-TBL_Ceremony[[#Totals],[ДЕЙСТВИТЕЛЕН]]","v":{"v":800,"d":"800.00 лв."}}]
[]
[]
[null,"КАНЦЕЛАРСКИ МАТЕРИАЛИ","ОЧАКВАН","ДЕЙСТВИТЕЛЕН","РАЗЛИКА"]
[null,"Картички - покани за сватбата",{"v":50,"d":"50.00 лв."},null,{"$f":"IF(OR(TBL_Stationery[[#This Row],[ОЧАКВАН]]=\"\",TBL_Stationery[[#This Row],[ДЕЙСТВИТЕЛЕН]]=\"\"),\"\",TBL_Stationery[[#This Row],[ОЧАКВАН]]-TBL_Stationery[[#This Row],[ДЕЙСТВИТЕЛЕН]])","v":""}]
[null,"Покани и RSVPs",{"v":100,"d":"100.00 лв."},null,{"$f":"IF(OR(TBL_Stationery[[#This Row],[ОЧАКВАН]]=\"\",TBL_Stationery[[#This Row],[ДЕЙСТВИТЕЛЕН]]=\"\"),\"\",TBL_Stationery[[#This Row],[ОЧАКВАН]]-TBL_Stationery[[#This Row],[ДЕЙСТВИТЕЛЕН]])","v":""}]
[null,"Програми",{"v":50,"d":"50.00 лв."},null,{"$f":"IF(OR(TBL_Stationery[[#This Row],[ОЧАКВАН]]=\"\",TBL_Stationery[[#This Row],[ДЕЙСТВИТЕЛЕН]]=\"\"),\"\",TBL_Stationery[[#This Row],[ОЧАКВАН]]-TBL_Stationery[[#This Row],[ДЕЙСТВИТЕЛЕН]])","v":""}]
[null,"Надписи за място за сядане",{"v":50,"d":"50.00 лв."},null,{"$f":"IF(OR(TBL_Stationery[[#This Row],[ОЧАКВАН]]=\"\",TBL_Stationery[[#This Row],[ДЕЙСТВИТЕЛЕН]]=\"\"),\"\",TBL_Stationery[[#This Row],[ОЧАКВАН]]-TBL_Stationery[[#This Row],[ДЕЙСТВИТЕЛЕН]])","v":""}]
[null,"Менюта",{"v":50,"d":"50.00 лв."},null,{"$f":"IF(OR(TBL_Stationery[[#This Row],[ОЧАКВАН]]=\"\",TBL_Stationery[[#This Row],[ДЕЙСТВИТЕЛЕН]]=\"\"),\"\",TBL_Stationery[[#This Row],[ОЧАКВАН]]-TBL_Stationery[[#This Row],[ДЕЙСТВИТЕЛЕН]])","v":""}]
[null,"Бележки за благодарственост",{"v":50,"d":"50.00 лв."},null,{"$f":"IF(OR(TBL_Stationery[[#This Row],[ОЧАКВАН]]=\"\",TBL_Stationery[[#This Row],[ДЕЙСТВИТЕЛЕН]]=\"\"),\"\",TBL_Stationery[[#This Row],[ОЧАКВАН]]-TBL_Stationery[[#This Row],[ДЕЙСТВИТЕЛЕН]])","v":""}]
[null,"Пощенски разходи",{"v":50,"d":"50.00 лв."},null,{"$f":"IF(OR(TBL_Stationery[[#This Row],[ОЧАКВАН]]=\"\",TBL_Stationery[[#This Row],[ДЕЙСТВИТЕЛЕН]]=\"\"),\"\",TBL_Stationery[[#This Row],[ОЧАКВАН]]-TBL_Stationery[[#This Row],[ДЕЙСТВИТЕЛЕН]])","v":""}]
[null,"Други разходи",{"v":100,"d":"100.00 лв."},null,{"$f":"IF(OR(TBL_Stationery[[#This Row],[ОЧАКВАН]]=\"\",TBL_Stationery[[#This Row],[ДЕЙСТВИТЕЛЕН]]=\"\"),\"\",TBL_Stationery[[#This Row],[ОЧАКВАН]]-TBL_Stationery[[#This Row],[ДЕЙСТВИТЕЛЕН]])","v":""}]
[null,"ОБЩО ЗА КАНЦЕЛАРСКИ МАТЕРИАЛИ",{"$f":"SUBTOTAL(109,TBL_Stationery[ОЧАКВАН])","v":{"v":500,"d":"500.00 лв."}},{"$f":"SUBTOTAL(109,TBL_Stationery[ДЕЙСТВИТЕЛЕН])","v":{"v":0,"d":"0.00 лв."}},{"$f":"TBL_Stationery[[#Totals],[ОЧАКВАН]]-TBL_Stationery[[#Totals],[ДЕЙСТВИТЕЛЕН]]","v":{"v":500,"d":"500.00 лв."}}]
[]
[]
[null,"ВЕНЧАЛНИ ХАЛКИ","ОЧАКВАН","ДЕЙСТВИТЕЛЕН","РАЗЛИКА"]
[null,"Венчални халки",{"v":1000,"d":"1,000.00 лв."},null,{"$f":"IF(OR(TBL_WeddingRings[[#This Row],[ОЧАКВАН]]=\"\",TBL_WeddingRings[[#This Row],[ДЕЙСТВИТЕЛЕН]]=\"\"),\"\",TBL_WeddingRings[[#This Row],[ОЧАКВАН]]-TBL_WeddingRings[[#This Row],[ДЕЙСТВИТЕЛЕН]])","v":""}]
[null,"Аксесоари за пръстените",{"v":100,"d":"100.00 лв."},null,{"$f":"IF(OR(TBL_WeddingRings[[#This Row],[ОЧАКВАН]]=\"\",TBL_WeddingRings[[#This Row],[ДЕЙСТВИТЕЛЕН]]=\"\"),\"\",TBL_WeddingRings[[#This Row],[ОЧАКВАН]]-TBL_WeddingRings[[#This Row],[ДЕЙСТВИТЕЛЕН]])","v":""}]
[null,"ОБЩО ЗА ВЕНЧАЛНИ ХАЛКИ",{"$f":"SUBTOTAL(109,TBL_WeddingRings[ОЧАКВАН])","v":{"v":1100,"d":"1,100.00 лв."}},{"$f":"SUBTOTAL(109,TBL_WeddingRings[ДЕЙСТВИТЕЛЕН])","v":{"v":0,"d":"0.00 лв."}},{"$f":"TBL_WeddingRings[[#Totals],[ОЧАКВАН]]-TBL_WeddingRings[[#Totals],[ДЕЙСТВИТЕЛЕН]]","v":{"v":1100,"d":"1,100.00 лв."}}]
[]
[]
[null,"ТРАНСПОРТ  ","ОЧАКВАН","ДЕЙСТВИТЕЛЕН","РАЗЛИКА"]
[null,"Основна кола наем",{"v":100,"d":"100.00 лв."},null,{"$f":"IF(OR(TBL_Transportation[[#This Row],[ОЧАКВАН]]=\"\",TBL_Transportation[[#This Row],[ДЕЙСТВИТЕЛЕН]]=\"\"),\"\",TBL_Transportation[[#This Row],[ОЧАКВАН]]-TBL_Transportation[[#This Row],[ДЕЙСТВИТЕЛЕН]])","v":""}]
[null,"Коли под наем на гостите",{"v":100,"d":"100.00 лв."},null,{"$f":"IF(OR(TBL_Transportation[[#This Row],[ОЧАКВАН]]=\"\",TBL_Transportation[[#This Row],[ДЕЙСТВИТЕЛЕН]]=\"\"),\"\",TBL_Transportation[[#This Row],[ОЧАКВАН]]-TBL_Transportation[[#This Row],[ДЕЙСТВИТЕЛЕН]])","v":""}]
[null,"Транспорт за гости извън града",{"v":100,"d":"100.00 лв."},null,{"$f":"IF(OR(TBL_Transportation[[#This Row],[ОЧАКВАН]]=\"\",TBL_Transportation[[#This Row],[ДЕЙСТВИТЕЛЕН]]=\"\"),\"\",TBL_Transportation[[#This Row],[ОЧАКВАН]]-TBL_Transportation[[#This Row],[ДЕЙСТВИТЕЛЕН]])","v":""}]
[null,"Паркинг с обслужване",{"v":50,"d":"50.00 лв."},null,{"$f":"IF(OR(TBL_Transportation[[#This Row],[ОЧАКВАН]]=\"\",TBL_Transportation[[#This Row],[ДЕЙСТВИТЕЛЕН]]=\"\"),\"\",TBL_Transportation[[#This Row],[ОЧАКВАН]]-TBL_Transportation[[#This Row],[ДЕЙСТВИТЕЛЕН]])","v":""}]
[null,"Други разходи",{"v":100,"d":"100.00 лв."},null,{"$f":"IF(OR(TBL_Transportation[[#This Row],[ОЧАКВАН]]=\"\",TBL_Transportation[[#This Row],[ДЕЙСТВИТЕЛЕН]]=\"\"),\"\",TBL_Transportation[[#This Row],[ОЧАКВАН]]-TBL_Transportation[[#This Row],[ДЕЙСТВИТЕЛЕН]])","v":""}]
[null,"ОБЩО ЗА ТРАНСПОРТ",{"$f":"SUBTOTAL(109,TBL_Transportation[ОЧАКВАН])","v":{"v":450,"d":"450.00 лв."}},{"$f":"SUBTOTAL(109,TBL_Transportation[ДЕЙСТВИТЕЛЕН])","v":{"v":0,"d":"0.00 лв."}},{"$f":"TBL_Transportation[[#Totals],[ОЧАКВАН]]-TBL_Transportation[[#Totals],[ДЕЙСТВИТЕЛЕН]]","v":{"v":450,"d":"450.00 лв."}}]